{"text_format":"1","workbook":"xlsx","n_sheets":3,"sheets":["ورقة1","ورقة2","ورقة3"],"not_rendered":{"charts":0,"images":1,"macros":1,"external_links":0,"defined_names":1,"comments":0,"pivot_tables":0},"unopened":[],"bounds":{"document_bytes":16777216,"sheet_cells":100000,"rows_first":2000,"rows_last":500,"rows_between":2000,"halvings":0,"cell_chars":16384,"cell_head_chars":4096},"cells_cut":0,"cells_raw":0,"read":"whole","date_system":"1900"}

{"sheet":"ورقة1","index":0,"n_rows":26,"n_cols":9,"rows_kept":26,"cut":false,"hidden":false,"merged":[]}
[]
[null,"م","اسم اليتيم","تاريخ الميلاد","اسم الوصى","رقم تليفون (1)","رقم تليفون (2)","العنوان","تم التسليم"]
[null,{"$f":"IF(C2=\"\",\"\",ROW()-3+1)","v":1},"نور ابراهيم محمد صالح",null,"كاملة جمعه فوزى مبارك","01092697746",null,"النجيلة"]
[null,{"$f":"IF(C3=\"\",\"\",ROW()-3+1)","v":2},"اشرف محمود محمد عشرى دقيش",null,"الهام محمد عبد المقصود الفيل","01006173362",null,"محلة احمد"]
[null,3,"رحمة ياسر فاروق فتح الله بسيونى",null,"فاطمة احمد عبد الفتاح ربيع","01000175033","01002305869","ش المصنع كوم حماده"]
[null,4,"سعيد محمد سعيد ابو بكر علي",null,"وردة محمود عبد المقصود علي ناجى","01025409656","01010489484","دمشلي"]
[null,5,"محمد محمد سعيد حافظ عبد السيد",null,"سمر حمدى عبد المجيد صقر","01000175033","0106822131","زاوية البحر"]
[null,6,"يمنى سامى محمدمحمود ابو العينين",null,"انشراح فريد محمد حسن جانب","01000175033","010095207194","النقيدى"]
[null,7,"مريم عيد عبد الوهاب عبد العزيز",null,"ورده محمود عبده","01270203155",null,"منشأة مهنا"]
[null,8,"عمر خالد محمد احمد مرسي",null,"صباح حسن عبد الله ابراهيم السقا","01094510032","01009622338","كفر دمتيوه"]
[null,9,"مصطفي محمد خيرت عبد الله قابوط",null,"اسماء سعد جمال عبد الغني","01067925918",null,"كوم شريك"]
[null,10,"احمد محمد محمود عز الدين غريب",null,"السيدة حسن عبد الجليل حسنين","01023447399","01004085602","عز الدين البريجات"]
[null,11,"عبد الرحمن محمد صبري محمد فياله",null,"فاطمة عبد المحسن مبروك الاشقر","01000175033","010062138613","واقد"]
[null,12,"ابراهيم رجب ابراهيم محمد بدر",null,"امل ابراهيم علي المشاق","01012721038","01013294097","ابو الخاوى"]
[null,13,"مى عبد الفضيل عيد منصور ",null,"هدى فاروق عبد السلام مرزوق","01022596744",null,"الطيرية"]
[null,14,"محمود صفوت كمال محمد محمد",null,"كريمة على محمد زعير","0104749377",null,"محطة التحرير","تم"]
[null,15,"عبد الرؤوف محمد عبد الرؤوف زيتون",null,"فوز كامل عباس سليمان","01002044873",null,"كفر غرين"]
[null,16,"صابرين رزق فرج اباهيم السيسي",null,"صديقة محمد ناصف عبد الموجود","01021554103",null,"البريجات"]
[null,17,"محمد صبرى رجب محمدالسرس",null,"هدوه صابر محمد عبد القادر السرس","01003595871",null,"عمر بن الخطاب"]
[null,18,"محمد رضا محمد الجوهرى العريان",null,"هالة عبد الفتاح عبد الحميد أغا","01060921073","01119041273","بريم"]
[null,19,"عمرو علاء صلاح الدين على النجار",null,"سالمة محسن عبد الصادق الدريف","01095935757",null,"ابسوم الشرقية"]
[null,20,"محمد شعبان محمد عبد الرحمن مصطفى",null,"هبه محمود عبد السيد","01090054346","01067142059","ابسوم الشرقية"]
[null,21,"ريناد مجدى محمد عبد اللطيف",null,"نادية علوانى محمود علوتنى","01090262953",null,"الطيرية"]
[null,22,"اسراء شعبان محمد عبد الرحمن مصطفى",null,"هبه محمود عبد السيد","01090054346","01067142059","ابسوم الشرقية"]
[null,23,"فاطمة صدقى محمد محمد فليفل",null,"هانم عبد اللطيف محمد راشد","01003926166",null,"الطيرية"]
[null,24,"حسن باسم سعيد عبد النبي رزق",null,"سعيد عبد النبي احمد رزق","01202763175","01210172086","بريم","تم"]

{"sheet":"ورقة2","index":1,"n_rows":0,"n_cols":0,"rows_kept":0,"cut":false,"hidden":false,"merged":[]}

{"sheet":"ورقة3","index":2,"n_rows":0,"n_cols":0,"rows_kept":0,"cut":false,"hidden":false,"merged":[]}